lending/lending_fUSD_20260306
["ID","MTS","AMOUNT","RATE_DAILY","PERIOD"]
[407835682,1772821832586,-9999.99,0.00014472,2]
[407835683,1772821832596,-350.24,0.00014472,2]
[407835684,1772821832606,-150.99,0.00014472,2]
[407835685,1772821832615,-415.66,0.00014472,2]
[407835686,1772821832625,-7288.86,0.00014472,2]
[407835687,1772821832635,-384.08049174,0.00014473,2]
[407835688,1772821832646,-456.2507188,0.00014473,2]
[407835689,1772821832656,-659.53632852,0.00014473,2]
[407835690,1772821832665,-464.45927058,0.00014473,2]
[407835692,1772821832675,-1917.52478166,0.00014473,2]
[407835693,1772821832683,-3254.70629479,0.00014473,2]
[407835694,1772821832694,-755.24931303,0.00014523,2]
[407835695,1772821832703,-151.0,0.00014524,2]
[407835696,1772821832714,-151.0,0.00014524,2]
[407835697,1772821832723,-500.0,0.00014524,2]
[407835698,1772821832732,-151.0,0.00014524,2]
[407835699,1772821832742,-500.0,0.00014524,2]
[407835700,1772821832751,-151.0,0.00014524,2]
[407835701,1772821832760,-500.0,0.00014524,2]
[407835702,1772821832770,-151.0,0.00014524,2]
[407835703,1772821832780,-500.0,0.00014524,2]
[407835704,1772821832789,-151.0,0.00014524,2]
[407835705,1772821832799,-500.0,0.00014524,2]
[407835706,1772821832809,-151.0,0.00014524,2]
[407835707,1772821832818,-500.0,0.00014524,2]
[407835708,1772821832827,-151.0,0.00014524,2]
[407835709,1772821832835,-500.0,0.00014524,2]
[407835710,1772821832845,-151.0,0.00014524,2]
[407835711,1772821832854,-500.0,0.00014524,2]
[407835712,1772821832864,-151.0,0.00014524,2]
[407835713,1772821832874,-500.0,0.00014524,2]
[407835714,1772821832885,-151.0,0.00014524,2]
[407835715,1772821832895,-500.0,0.00014524,2]
[407835716,1772821832904,-500.0,0.00014524,2]
[407835717,1772821832913,-200.0,0.00014524,2]
[407835718,1772821832922,-151.0,0.00014524,2]
[407835719,1772821832932,-151.0,0.00014524,2]
[407835720,1772821832943,-151.0,0.00014524,2]
[407835721,1772821832951,-151.0,0.00014524,2]
[407835722,1772821832962,-151.0,0.00014524,2]
[407835723,1772821832971,-151.0,0.00014524,2]
[407835724,1772821832980,-151.0,0.00014524,2]
[407835725,1772821832990,-151.0,0.00014524,2]
[407835726,1772821833000,-151.0,0.00014524,2]
[407835727,1772821833009,-151.0,0.00014524,2]
[407835728,1772821833019,-151.0,0.00014524,2]
[407835729,1772821833028,-151.0,0.00014524,2]
[407835730,1772821833038,-151.0,0.00014524,2]
[407835731,1772821833047,-151.0,0.00014524,2]
[407835732,1772821833056,-151.0,0.00014524,2]
[407835733,1772821833065,-151.0,0.00014524,2]
[407835734,1772821833074,-151.0,0.00014524,2]
[407835735,1772821833084,-151.0,0.00014524,2]
[407835736,1772821833093,-151.0,0.00014524,2]
[407835737,1772821833103,-151.0,0.00014524,2]
[407835738,1772821833112,-151.0,0.00014524,2]
[407835739,1772821833122,-299.99,0.0001453,2]
[407835740,1772821833131,-999.99,0.0001453,2]
[407835741,1772821833140,-151.0,0.0001453,2]
[407835742,1772821833149,-500.0,0.00014532,2]
[407835743,1772821833159,-500.0,0.00014532,2]
[407835744,1772821833168,-500.0,0.00014532,2]
[407835745,1772821833177,-500.0,0.00014532,2]
[407835746,1772821833186,-447.88736958,0.00014532,2]
[407835747,1772821833195,-500.0,0.00014532,2]
[407835748,1772821833205,-500.0,0.00014532,2]
[407835749,1772821833215,-413.799732,0.00014532,2]
[407835750,1772821833227,-500.0,0.00014532,2]
[407835751,1772821833236,-500.0,0.00014532,2]
[407835752,1772821833246,-500.0,0.00014532,2]
[407835753,1772821833255,-500.0,0.00014532,2]
[407835754,1772821833265,-500.0,0.00014532,2]
[407835755,1772821833275,-500.0,0.00014532,2]
[407835756,1772821833286,-500.0,0.00014532,2]
[407835757,1772821833296,-500.0,0.00014532,2]
[407835758,1772821833306,-500.0,0.00014532,2]
[407835759,1772821833315,-500.0,0.00014532,2]
[407835760,1772821833325,-500.0,0.00014532,2]
[407835761,1772821833334,-386.32457567,0.00014532,2]
[407835762,1772821833343,-500.0,0.00014532,2]
[407835763,1772821833353,-500.0,0.00014532,2]
[407835764,1772821833364,-500.0,0.00014532,2]
[407835765,1772821833374,-500.0,0.00014532,2]
[407835766,1772821833383,-500.0,0.00014532,2]
[407835767,1772821833393,-500.0,0.00014532,2]
[407835768,1772821833402,-500.0,0.00014532,2]
[407835769,1772821833411,-500.0,0.00014532,2]
[407835770,1772821833421,-500.0,0.00014532,2]
[407835771,1772821833430,-500.0,0.00014532,2]
[407835772,1772821833440,-500.0,0.00014532,2]
[407835773,1772821833449,-500.0,0.00014532,2]
[407835774,1772821833459,-500.0,0.00014532,2]
[407835775,1772821833468,-500.0,0.00014532,2]
[407835776,1772821833477,-500.0,0.00014532,2]
[407835777,1772821833487,-500.0,0.00014532,2]
[407835778,1772821833497,-500.0,0.00014532,2]
[407835779,1772821833507,-500.0,0.00014532,2]
[407835780,1772821833517,-500.0,0.00014532,2]
[407835781,1772821833526,-500.0,0.00014532,2]
[407835782,1772821833536,-500.0,0.00014532,2]
[407835783,1772821833545,-500.0,0.00014532,2]
[407835784,1772821833555,-500.0,0.00014532,2]
[407835785,1772821833565,-500.0,0.00014532,2]
[407835786,1772821833575,-500.0,0.00014532,2]
[407835787,1772821833584,-389.49987696,0.00014532,2]
[407835788,1772821833594,-500.0,0.00014532,2]
[407835789,1772821833603,-500.0,0.00014532,2]
[407835790,1772821833612,-500.0,0.00014532,2]
[407835791,1772821833622,-500.0,0.00014532,2]
[407835792,1772821833631,-500.0,0.00014532,2]
[407835793,1772821833641,-500.0,0.00014532,2]
[407835794,1772821833654,-500.0,0.00014532,2]
[407835795,1772821833663,-500.0,0.00014532,2]
[407835796,1772821833673,-500.0,0.00014532,2]
[407835797,1772821833683,-500.0,0.00014532,2]
[407835798,1772821833693,-500.0,0.00014532,2]
[407835799,1772821833703,-500.0,0.00014532,2]
[407835800,1772821833714,-500.0,0.00014532,2]
[407835801,1772821833725,-500.0,0.00014532,2]
[407835802,1772821833734,-500.0,0.00014532,2]
[407835803,1772821833743,-500.0,0.00014532,2]
[407835804,1772821833753,-638.63245757,0.00014532,2]
[407835805,1772821833763,-500.0,0.00014532,2]
[407835806,1772821833773,-500.0,0.00014532,2]
[407835807,1772821833782,-500.0,0.00014532,2]
[407835808,1772821833791,-500.0,0.00014532,2]
[407835809,1772821833801,-500.0,0.00014532,2]
[407835810,1772821833811,-500.0,0.00014532,2]
[407835811,1772821833820,-500.0,0.00014532,2]
[407835812,1772821833829,-500.0,0.00014532,2]
[407835813,1772821833838,-404.29249528,0.00014532,2]
[407835814,1772821833847,-1008.35756595,0.00014532,5]
[407835815,1772821833857,-500.0,0.00014532,2]
[407835816,1772821833866,-500.0,0.00014532,2]
[407835817,1772821833875,-389.89566096,0.00014532,2]
[407835818,1772821833885,-500.0,0.00014532,2]
[407835819,1772821833895,-500.0,0.00014532,2]
[407835820,1772821833905,-500.0,0.00014532,2]
[407835821,1772821833914,-500.0,0.00014532,2]
[407835822,1772821833923,-500.0,0.00014532,2]
[407835823,1772821833932,-500.0,0.00014532,2]
[407835824,1772821833940,-193.3943989,0.00014532,2]
[407835825,1772821833950,-500.0,0.00014532,2]
[407835826,1772821833959,-500.0,0.00014532,2]
[407835827,1772821833968,-500.0,0.00014532,2]
[407835828,1772821833978,-500.0,0.00014532,2]
[407835829,1772821833987,-500.0,0.00014532,2]
[407835830,1772821833996,-500.0,0.00014532,2]
[407835831,1772821834006,-500.0,0.00014532,2]
[407835832,1772821834015,-500.0,0.00014532,2]
[407835833,1772821834025,-500.0,0.00014532,2]
[407835834,1772821834034,-361.46682815,0.00014532,2]
[407835835,1772821834044,-500.0,0.00014532,2]
[407835836,1772821834054,-500.0,0.00014532,2]
[407835837,1772821834065,-500.0,0.00014532,2]
[407835838,1772821834075,-500.0,0.00014532,2]
[407835839,1772821834086,-500.0,0.00014532,2]
[407835840,1772821834096,-379.68782672,0.00014532,2]
[407835841,1772821834107,-500.0,0.00014532,2]
[407835842,1772821834117,-500.0,0.00014532,2]
[407835843,1772821834127,-500.0,0.00014532,2]
[407835844,1772821834137,-500.0,0.00014532,2]
[407835845,1772821834147,-500.0,0.00014532,2]
[407835846,1772821834158,-500.0,0.00014532,2]
[407835847,1772821834168,-500.0,0.00014532,2]
[407835848,1772821834180,-500.0,0.00014532,2]
[407835849,1772821834191,-500.0,0.00014532,2]
[407835850,1772821834202,-500.0,0.00014532,2]
[407835851,1772821834212,-500.0,0.00014532,2]
[407835852,1772821834222,-500.0,0.00014532,2]
[407835853,1772821834232,-500.0,0.00014532,2]
[407835854,1772821834241,-500.0,0.00014532,2]
[407835855,1772821834252,-630.81055911,0.00014532,2]
[407835856,1772821834262,-1130.67785309,0.00014532,5]
[407835857,1772821834274,-1130.67785308,0.00014532,5]
[407835858,1772821834284,-1130.67785308,0.00014532,5]
[407835859,1772821834294,-507.5,0.00014532,2]
[407835860,1772821834304,-500.0,0.00014532,2]
[407835861,1772821834315,-500.0,0.00014532,2]
[407835862,1772821834325,-500.0,0.00014532,2]
[407835863,1772821834336,-500.0,0.00014532,2]
[407835864,1772821834347,-500.0,0.00014532,2]
[407835865,1772821834357,-500.0,0.00014532,2]
[407835866,1772821834368,-500.0,0.00014532,2]
[407835867,1772821834378,-500.0,0.00014532,2]
[407835868,1772821834389,-500.0,0.00014532,2]
[407835869,1772821834402,-500.0,0.00014532,2]
[407835870,1772821834413,-500.0,0.00014532,2]
[407835871,1772821834424,-500.0,0.00014532,2]
[407835872,1772821834435,-500.0,0.00014532,2]
[407835873,1772821834446,-500.0,0.00014532,2]
[407835874,1772821834456,-500.0,0.00014532,2]
[407835875,1772821834468,-500.0,0.00014532,2]
[407835876,1772821834479,-11342.44424247,0.00014533,2]
[407835877,1772821834800,-255568.93061194,0.00014533,2]
[407835878,1772821834813,-367532.84310973,0.00014533,2]
[407835879,1772821834826,-1254.41808677,0.00014533,2]
[407835884,1772821838363,-63293.86017539,0.00014533,2]
[407835885,1772821838619,-10400.92291007,0.00014533,2]
[407835887,1772821838639,-344.54591936,0.00014533,2]
[407835888,1772821838653,-435.68171857,0.00014533,2]
[407835889,1772821838664,-22353.76076004,0.00014533,2]
[407835890,1772821838680,-1767472.59246566,0.00014533,2]
[407835891,1772821838691,-500.0,0.00014573,2]
[407835892,1772821838701,-500.0,0.00014573,2]
[407835893,1772821838711,-500.0,0.00014573,2]
[407835894,1772821838721,-500.0,0.00014573,2]
[407835895,1772821838734,-500.0,0.00014573,2]
[407835896,1772821838744,-501.11845623,0.00014573,2]
[407835897,1772821838754,-500.0,0.00014573,2]
[407835898,1772821838763,-500.0,0.00014573,2]
[407835899,1772821838772,-240.12890457,0.00014573,2]
[407835900,1772821838781,-500.0,0.00014573,2]
[407835901,1772821838791,-219.32528239,0.00014573,2]
[407835902,1772821838800,-500.0,0.00014573,2]
[407835903,1772821838809,-500.0,0.00014573,2]
[407835904,1772821838819,-500.0,0.00014573,2]
[407835905,1772821838828,-500.0,0.00014573,2]
[407835906,1772821838838,-501.14462458,0.00014573,2]
[407835907,1772821838847,-500.0,0.00014573,2]
[407835908,1772821838859,-500.43471003,0.00014573,2]
[407835909,1772821838869,-500.0,0.00014573,2]
[407835910,1772821838878,-500.0,0.00014573,2]
[407835911,1772821838887,-500.0,0.00014573,2]
[407835912,1772821838897,-4000.0,0.00014673,2]
[407835913,1772821838907,-319.0,0.00014673,2]
[407835914,1772821838916,-183.0,0.00014703,2]
[407835915,1772821838928,-170.62771964,0.00014705,2]
[407835916,1772821838937,-793.15072587,0.00014721,2]
[407835917,1772821838946,-237.0,0.00014755,2]
[407835918,1772821838956,-2525.19522627,0.00014792,2]
[407835919,1772821838965,-4740.0,0.000148,5]
[407835920,1772821838974,-500.0,0.00014806,2]
[407835921,1772821838984,-507.5,0.00014806,2]
[407835922,1772821838995,-1837.0,0.0001483,2]
[407835923,1772821839004,-252.0,0.0001483,2]
[407835924,1772821839014,-2093.63,0.00014853,2]
[407835925,1772821839023,-1510.0,0.00014856,2]
[407835926,1772821839033,-281.0,0.00014859,2]
[407835927,1772821839043,-290.0,0.00014892,2]
[407835928,1772821839054,-500.0,0.0001498,2]
[407835929,1772821839065,-500.0,0.0001498,2]
[407835930,1772821839075,-500.0,0.0001498,2]
[407835931,1772821839084,-500.0,0.0001498,2]
[407835932,1772821839093,-500.0,0.0001498,2]
[407835933,1772821839101,-283.81037588,0.0001498,2]
[407835934,1772821839110,-497.49770464,0.0001498,2]
[407835935,1772821839119,-500.0,0.0001498,2]
[407835936,1772821839128,-500.0,0.0001498,2]
[407835937,1772821839138,-500.0,0.0001498,2]
[407835938,1772821839147,-500.0,0.0001498,2]
[407835939,1772821839156,-500.0,0.0001498,2]
[407835940,1772821839166,-500.0,0.0001498,2]
[407835941,1772821839175,-500.0,0.0001498,2]
[407835942,1772821839186,-500.0,0.0001498,2]
[407835943,1772821839195,-500.0,0.0001498,2]
[407835944,1772821839204,-500.0,0.0001498,2]
[407835945,1772821839213,-500.0,0.0001498,2]
[407835946,1772821839222,-551.6181156,0.0001498,2]
[407835947,1772821839231,-4000.0,0.00015014,2]
[407835948,1772821839240,-827.87504052,0.00015021,2]
[407835949,1772821839249,-12284.65249169,0.0001504,2]
[407835950,1772821839259,-200.0,0.00015072,2]
[407835951,1772821839268,-362.62096704,0.0001508,2]
[407835952,1772821839277,-500.0,0.0001508,2]
[407835953,1772821839286,-500.0,0.0001508,2]
[407835954,1772821839296,-507.5,0.0001508,2]
[407835955,1772821839306,-500.0,0.00015121,2]
[407835956,1772821839317,-500.0,0.00015121,2]
[407835957,1772821839326,-500.0,0.00015121,2]
[407835958,1772821839335,-1000.0,0.00015121,2]
[407835959,1772821839345,-1000.0,0.00015121,2]
[407835960,1772821839355,-500.0,0.00015121,2]
[407835961,1772821839365,-500.0,0.00015121,2]
[407835962,1772821839375,-1000.0,0.00015121,2]
[407835963,1772821839385,-3254.70629477,0.00015248,2]
[407835964,1772821839395,-3422.92,0.00015346,2]
[407835965,1772821839405,-507.5,0.00015354,2]
[407835966,1772821839415,-1000.0,0.00015368,2]
[407835967,1772821839425,-384.08049169,0.00015378,2]
[407835968,1772821839438,-255.0,0.00015522,2]
[407835969,1772821839448,-1917.52478161,0.00015558,2]
[407835970,1772821839458,-150.0,0.00015592,2]
[407835971,1772821839472,-300.0,0.00015592,2]
[407835972,1772821839481,-500.0,0.00015592,2]
[407835973,1772821839491,-600.0,0.00015592,2]
[407835974,1772821839500,-305.05958288,0.00015592,2]
[407835975,1772821839509,-5000.0,0.00015592,2]
[407835976,1772821839519,-250.0,0.00015592,2]
[407835977,1772821839528,-500.0,0.000156,2]
[407835978,1772821839538,-240.02207299,0.0001562,2]
[407835979,1772821839548,-507.5,0.00015628,2]
[407835980,1772821839558,-12284.65249169,0.00015647,2]
[407835981,1772821839569,-503.37044262,0.00015668,2]
[407835982,1772821839579,-1500.0,0.00015668,2]
[407835983,1772821839589,-500.0,0.00015733,2]
[407835984,1772821839599,-420.0,0.00015767,2]
[407835985,1772821839609,-166.66,0.00015807,2]
[407835986,1772821839620,-1680.0,0.00015838,2]
[407835987,1772821839630,-164.89685656,0.000159,2]
[407835988,1772821839640,-500.07952757,0.000159,2]
[407835989,1772821839655,-507.51434397,0.00015902,2]
[407835990,1772821839665,-258.69744367,0.0001596,2]
[407835991,1772821839675,-3254.70629477,0.00016024,2]
[407835992,1772821839687,-7979.49,0.00016116,2]
[407835993,1772821839696,-500.0,0.0001614,2]
[407835994,1772821839706,-189.29,0.0001621,2]
[407835995,1772821839716,-2000.0,0.00016216,2]
[407835996,1772821839727,-12902.04365943,0.00016225,2]
[407835997,1772821839738,-12284.65249169,0.00016255,2]
[407835998,1772821839748,-150.0,0.00016255,14]
[407835999,1772821839757,-1000.0,0.00016281,2]
[407836000,1772821839766,-384.08049169,0.00016282,2]
[407836001,1772821839775,-166.66,0.00016329,2]
[407836002,1772821839785,-184.94185274,0.0001645,2]
[407836003,1772821839794,-500.0,0.0001645,2]
[407836004,1772821839804,-500.0,0.0001645,2]
[407836005,1772821839813,-500.0,0.0001645,2]
[407836006,1772821839822,-500.0,0.0001645,2]
[407836007,1772821839832,-500.0,0.0001645,2]
[407836008,1772821839841,-189.29,0.0001648,2]
[407836009,1772821839852,-500.0,0.0001655,2]
[407836010,1772821839862,-500.0,0.0001655,2]
[407836011,1772821839872,-500.0,0.0001655,2]
[407836012,1772821839882,-500.0,0.0001655,2]
[407836013,1772821839891,-1917.52478161,0.00016644,2]
[407836014,1772821839901,-1000.0,0.00016688,2]
[407836015,1772821839910,-433.0,0.00016732,2]
[407836016,1772821839919,-189.29,0.0001675,2]
[407836017,1772821839928,-2500.0,0.00016764,2]
[407836018,1772821839938,-500.0,0.00016775,2]
[407836019,1772821839947,-500.0,0.00016775,2]
[407836020,1772821839957,-500.0,0.00016775,2]
[407836021,1772821839967,-500.0,0.00016775,2]
[407836022,1772821839976,-500.0,0.00016775,2]
[407836023,1772821839985,-500.0,0.0001678,2]
[407836024,1772821839995,-500.0,0.0001678,2]
[407836025,1772821840004,-500.0,0.0001678,2]
[407836026,1772821840014,-500.0,0.0001678,2]
[407836027,1772821840023,-500.0,0.0001678,2]
[407836028,1772821840033,-3254.70629477,0.00016799,2]
[407836029,1772821840042,-1500.0,0.00016829,2]
[407836030,1772821840052,-166.66,0.0001685,2]
[407836031,1772821840061,-12284.65249169,0.00016862,2]
[407836032,1772821840071,-225.0,0.00016978,2]
[407836033,1772821840080,-1000.0,0.00016998,2]
[407836034,1772821840089,-1000.0,0.00016998,2]
[407836035,1772821840099,-1000.0,0.00016998,2]
[407836036,1772821840109,-1000.0,0.00016998,2]
[407836037,1772821840118,-189.29,0.0001702,2]
[407836038,1772821840128,-1000.0,0.00017076,2]
[407836039,1772821840137,-1000.0,0.00017098,2]
[407836040,1772821840147,-494.64624274,0.00017098,2]
[407836041,1772821840156,-1000.0,0.00017098,2]
[407836042,1772821840166,-1000.0,0.00017098,2]
[407836043,1772821840176,-238.0,0.00017147,2]
[407836044,1772821840186,-384.08049169,0.00017187,2]
[407836045,1772821840196,-456.25071879,0.00017187,2]
[407836046,1772821840205,-464.45927056,0.00017187,2]
[407836047,1772821840215,-808.66175515,0.00017235,2]
[407836048,1772821840225,-1442.99956491,0.00017236,2]
[407836049,1772821840234,-500.0,0.00017255,2]
[407836050,1772821840244,-151.0,0.00017263,2]
[407836051,1772821840253,-587.0,0.00017267,2]
[407836052,1772821840263,-189.29,0.0001729,2]
[407836053,1772821840273,-2000.0,0.00017312,2]
[407836054,1772821840282,-1000.0,0.00017323,2]
[407836055,1772821840291,-449.5306254,0.00017323,2]
[407836056,1772821840300,-556.1229892,0.00017323,2]
[407836057,1772821840309,-1000.0,0.00017323,2]
[407836058,1772821840319,-1000.0,0.00017323,2]
[407836059,1772821840328,-1000.0,0.00017328,2]
[407836060,1772821840338,-705.88057451,0.00017328,2]
[407836061,1772821840348,-1000.0,0.00017328,2]
[407836062,1772821840357,-1000.0,0.00017328,2]
[407836063,1772821840366,-530.88059829,0.00017328,2]
[407836064,1772821840375,-2525.19522626,0.00017346,2]
[407836065,1772821840385,-166.66,0.00017372,2]
[407836066,1772821840394,-489.71509886,0.00017377,2]
[407836067,1772821840404,-2351.0,0.00017422,2]
[407836069,1772821840413,-827.8750405,0.00017461,2]
[407836070,1772821840423,-12284.65249169,0.0001747,2]
[407836071,1772821840432,-3816.51,0.00017489,120]
[407836072,1772821840442,-1312.47,0.0001751,7]
[407836073,1772821840452,-1500.0,0.00017546,2]
[407836074,1772821840461,-1500.0,0.00017546,2]
[407836077,1772821840470,-1500.0,0.00017546,2]
[407836079,1772821840479,-1500.0,0.00017546,2]
[407836081,1772821840488,-189.29,0.0001756,2]
[407836083,1772821840498,-3254.70629477,0.00017574,2]
[407836084,1772821840508,-387.85,0.00017586,2]
[407836085,1772821840519,-13124.66,0.00017603,7]
[407836086,1772821840527,-172.74325605,0.00017603,7]
[407836087,1772821840537,-500.0,0.00017616,2]
[407836088,1772821840550,-1500.0,0.00017646,2]
[407836089,1772821840560,-1134.58548457,0.00017646,2]
[407836090,1772821840569,-1917.52478161,0.00017729,2]
[407836091,1772821840578,-500.0,0.00017753,2]
[407836092,1772821840588,-189.29,0.0001783,2]
[407836093,1772821840597,-1500.0,0.00017871,2]
[407836094,1772821840607,-1057.2086331,0.00017871,2]
[407836095,1772821840615,-1000.0,0.00017871,2]
[407836096,1772821840627,-1000.0,0.00017876,2]
[407836097,1772821840636,-500.0,0.00017876,2]
[407836098,1772821840648,-1500.0,0.00017876,2]
[407836099,1772821840657,-166.66,0.00017894,2]
[407836100,1772821840667,-1484.34556035,0.000179,2]
[407836101,1772821840678,-1484.34556033,0.000179,2]
[407836102,1772821840688,-1484.34556033,0.000179,2]
[407836103,1772821840698,-1484.34556033,0.000179,2]
[407836104,1772821840707,-1635.64,0.0001793,120]
[407836105,1772821840718,-984.35,0.00018035,7]
[407836106,1772821840727,-150.0,0.00018042,2]
[407836107,1772821840737,-12284.65249169,0.00018077,2]
[407836108,1772821840747,-384.08049169,0.00018091,2]
[407836109,1772821840756,-2000.0,0.00018094,2]
[407836110,1772821840766,-2000.0,0.00018094,2]
[407836111,1772821840775,-2000.0,0.00018094,2]
[407836112,1772821840784,-189.29,0.000181,2]
[407836113,1772821840793,-9547.53,0.000181,2]
[407836114,1772821840803,-9843.49,0.00018131,7]
[407836115,1772821840812,-876.76,0.00018176,2]
[407836116,1772821840821,-2000.0,0.00018194,2]
[407836117,1772821840830,-780.83,0.00018272,2]
[407836118,1772821840839,-16756.87,0.00018327,2]
[407836119,1772821840849,-3254.70629477,0.00018349,2]
[407836120,1772821840858,-450.10607505,0.00018361,2]
[407836121,1772821840867,-189.29,0.0001837,2]
[407836122,1772821840877,-166.66,0.00018416,2]
[407836123,1772821840887,-2000.0,0.00018419,2]
[407836124,1772821840895,-1278.57186039,0.00018424,2]
[407836125,1772821840905,-876.76,0.0001845,2]
[407836126,1772821840914,-215.83,0.00018539,2]
[407836127,1772821840923,-780.83,0.00018546,2]
[407836128,1772821840932,-656.23,0.00018561,7]
[407836129,1772821840941,-1389.4700174,0.00018563,2]
[407836130,1772821840950,-387.85,0.00018563,2]
[407836131,1772821840959,-151.0,0.00018605,2]
[407836132,1772821840968,-300169.6577336,0.00018608,2]
[407836133,1772821840978,-115287.2361397,0.00018608,2]
[407836134,1772821840987,-4096.5889039,0.00018608,2]
[407836135,1772821840997,-6859.8576927,0.00018609,2]
[407836136,1772821841006,-189.29,0.0001864,2]
[407836137,1772821841015,-680.57628362,0.00018642,2]
[407836138,1772821841024,-2500.0,0.00018642,2]
[407836139,1772821841033,-546.47179689,0.00018642,2]
[407836140,1772821841043,-6562.33,0.0001866,7]
[407836141,1772821841052,-500.0,0.00018673,2]
[407836142,1772821841062,-12284.65249169,0.00018685,2]
[407836143,1772821841071,-876.76,0.00018724,2]
[407836144,1772821841081,-2500.0,0.00018742,2]
[407836145,1772821841090,-1000.0,0.00018783,2]
[407836146,1772821841099,-1917.52478161,0.00018815,2]
[407836147,1772821841108,-780.83,0.0001882,2]
[407836148,1772821841118,-823.0,0.00018909,2]
[407836150,1772821841127,-189.29,0.0001891,2]
[407836151,1772821841137,-250.0,0.00018948,2]
[407836152,1772821841147,-2500.0,0.00018967,2]
[407836153,1772821841156,-384.08049169,0.00018996,2]
[407836154,1772821841165,-876.76,0.00018998,2]
[407836155,1772821841175,-9000.0,0.00018999,2]
[407836156,1772821841184,-500.0,0.00018999,2]
[407836157,1772821841193,-721.12765535,0.00018999,2]
[407836158,1772821841202,-2500.0,0.00018999,2]
[407836159,1772821841211,-2500.0,0.00018999,2]
[407836160,1772821841224,-250.0,0.00018999,2]
[407836161,1772821841233,-250.0,0.00018999,2]
[407836162,1772821841242,-2500.0,0.00018999,2]
[407836163,1772821841251,-250.0,0.00018999,2]
[407836164,1772821841260,-2500.0,0.00018999,2]
[407836165,1772821841269,-2500.0,0.00018999,2]
[407836166,1772821841278,-2500.0,0.00018999,2]
[407836167,1772821841287,-578.20924308,0.00018999,2]
[407836168,1772821841297,-1120.82343587,0.00018999,2]
[407836169,1772821841306,-1000.0,0.00018999,2]
[407836170,1772821841316,-3000.0,0.00018999,2]
[407836171,1772821841325,-1000.0,0.00018999,2]
[407836172,1772821841334,-3000.0,0.00018999,2]
[407836173,1772821841343,-1000.0,0.00018999,2]
[407836174,1772821841352,-3000.0,0.00018999,2]
[407836175,1772821841362,-1000.0,0.00018999,2]
[407836177,1772821841371,-151.0,0.00018999,2]
[407836179,1772821841380,-609.02156601,0.00018999,2]
[407836181,1772821841388,-3000.0,0.00018999,2]
[407836183,1772821841398,-259.41713478,0.00018999,2]
[407836185,1772821841406,-3000.0,0.00018999,2]
[407836187,1772821841415,-3000.0,0.00018999,2]
[407836189,1772821841425,-250.0,0.00018999,2]
[407836191,1772821841435,-250.0,0.00018999,2]
[407836192,1772821841444,-250.0,0.00018999,2]
[407836193,1772821841453,-3000.0,0.00018999,2]
[407836194,1772821841463,-693.3919763,0.00018999,2]
[407836195,1772821841473,-250.0,0.00018999,2]
[407836196,1772821841483,-3000.0,0.00018999,2]
[407836197,1772821841492,-250.0,0.00018999,2]
[407836198,1772821841502,-3000.0,0.00018999,2]
[407836199,1772821841511,-250.0,0.00018999,2]
[407836200,1772821841521,-3000.0,0.00018999,2]
[407836201,1772821841530,-3000.0,0.00018999,2]
[407836202,1772821841539,-743.50770149,0.00018999,2]